bitfinex/quotes_ETHUSD_20220119
["timestamp","ask_amount","ask_price","bid_price","bid_amount"]
[1642624303363,3.66464465,3115.1,3114.7,3.2]
[1642624303564,1.0,3115.0,3114.7,3.2]
[1642624303764,3.6783,3114.9,3114.8,0.00625266]
[1642624304062,7.88886074,3114.9,3114.8,0.00625266]
[1642624304665,5.14179074,3114.9,3114.8,0.00625266]
[1642624305264,6.14179074,3114.9,3114.8,0.00625266]
[1642624305464,7.74755074,3114.9,3114.8,0.00625266]
[1642624305663,9.78215039,3114.9,3114.8,0.00625266]
[1642624306306,7.04865574,3114.9,3114.8,0.00625266]
[1642624306502,9.7825976,3114.9,3114.8,0.00625266]
[1642624307106,9.7825976,3114.9,3114.8,0.00183566]
[1642624308212,5.65,3114.8,3114.7,1.19629163]
[1642624308408,13.14381349,3114.8,3114.7,1.19629163]
[1642624308608,13.27101349,3114.8,3114.7,1.19629163]
[1642624308807,0.80306,3114.3,3113.4,0.0008]
[1642624309010,0.80306,3114.1,3113.4,0.0008]
[1642624309209,0.3,3114.0,3113.5,0.00738951]
[1642624311260,0.03549734,3114.5,3113.5,0.00738951]
[1642624311261,0.1283,3114.5,3113.5,0.00738951]
[1642624311460,7.2388,3114.8,3113.5,0.00738951]
[1642624311663,7.1105,3114.8,3113.5,0.00738951]
[1642624311860,0.1283,3114.9,3113.5,0.00738951]
[1642624312059,0.1283,3114.9,3113.8,2.44206245]
[1642624312060,0.80295,3114.7,3113.8,2.44206245]
[1642624312267,0.80296,3114.5,3113.5,0.00738951]
[1642624312461,0.80296,3114.5,3113.9,0.00511581]
[1642624312681,0.1283,3114.4,3113.9,0.00511581]
[1642624313159,1.23132,3114.4,3113.9,0.00511581]
[1642624313361,1.10082612,3114.1,3113.9,0.00511581]
[1642624313561,5.79072549,3114.0,3113.4,0.0008]
[1642624313811,5.79072549,3114.0,3113.5,0.0022737]
[1642624314011,3.11971932,3113.9,3113.5,0.0022737]
[1642624314208,0.5133,3113.8,3113.5,0.0022737]
[1642624314407,2.11991,3113.8,3113.5,0.0022737]
[1642624315011,1.44007006,3113.6,3113.5,0.0022737]
[1642624315214,1.74007006,3113.6,3113.5,0.0022737]
[1642624315610,4.70269517,3113.6,3113.5,0.0022737]
[1642624317659,1.74007006,3113.6,3113.5,0.0022737]
[1642624318061,2.04007006,3113.6,3113.5,0.0022737]
[1642624318559,2.04007006,3113.6,3113.4,0.0008]
[1642624318560,0.80333,3113.5,3113.4,0.0008]
[1642624318764,0.93163,3113.5,3113.4,0.0008]
[1642624319160,0.1283,3113.5,3113.4,0.0008]
[1642624319861,2.07789655,3113.6,3113.4,0.0008]
[1642624320464,2.04007006,3113.6,3113.4,0.0008]
[1642624322005,0.6,3113.6,3113.4,0.0008]
[1642624322406,3.51464459,3113.6,3113.4,0.0008]
[1642624322608,2.87660496,3113.5,3113.4,0.0008]
[1642624322806,3.00490496,3113.5,3113.4,0.0008]
[1642624323205,1.46666866,3113.5,3113.4,0.0008]
[1642624323908,4.34626858,3113.5,3113.4,0.0008]
[1642624324206,1.46666866,3113.5,3113.4,3.2008]
[1642624325163,1.46666866,3113.5,3113.4,0.0008]
[1642624325561,1.33836866,3113.5,3113.4,0.0008]
[1642624326564,7.50166866,3113.5,3112.1,0.00187259]
[1642624326769,0.8033907,3113.1,3112.1,0.00187259]
[1642624326963,2.78725336,3113.1,3112.2,0.0073895]
[1642624327166,11.89018477,3113.1,3112.2,0.0073895]
[1642624327366,0.01245929,3112.4,3112.2,0.0073895]
[1642624327567,0.01245929,3112.4,3110.5,3.995]
[1642624327568,1.09139,3112.3,3110.5,3.995]
[1642624327770,1.09139,3112.3,3110.5,0.01]
[1642624327771,0.80375,3111.8,3110.5,0.01]
[1642624327966,0.14086327,3111.7,3110.5,0.01]
[1642624328167,2.0251,3111.7,3111.2,0.00568424]
[1642624328369,1.5966,3111.7,3111.2,0.00568424]
[1642624328568,0.3,3111.6,3111.2,0.00568424]
[1642624328822,0.80363,3111.6,3111.2,0.00568424]
[1642624329019,2.02484885,3112.1,3110.6,0.1285]
[1642624329020,0.385,3112.1,3111.1,0.01244165]
[1642624329225,8.6143,3112.6,3111.1,0.01244165]
[1642624329424,8.9143,3112.6,3111.1,0.01244165]
[1642624329629,1.00170527,3112.5,3112.1,1.09872844]
[1642624329827,1.60708,3112.3,3111.8,1.18015257]
[1642624330025,0.8036,3112.0,3111.1,0.01244165]
[1642624330225,0.8036,3112.0,3111.9,0.00170527]
[1642624330428,1.1036,3112.0,3111.9,0.00170527]
[1642624330628,1.14095196,3112.0,3111.9,0.00170527]
[1642624330927,0.8036,3112.0,3111.9,1.27650549]
[1642624331128,0.8036,3112.0,3111.8,1.49194701]
[1642624331328,0.8036,3112.0,3111.9,0.00170527]
[1642624331534,6.77698303,3112.0,3111.9,0.00170527]
[1642624331729,6.77698303,3112.0,3110.5,0.01]
[1642624331730,0.96775303,3112.0,3110.8,0.00795793]
[1642624331929,0.8036,3112.0,3110.8,0.00795793]
[1642624332128,0.8036,3112.0,3110.5,0.01]
[1642624332129,0.83734396,3112.0,3111.2,1.47815126]
[1642624332579,0.8036,3112.0,3111.3,0.00511581]
[1642624333180,0.8036,3112.0,3111.9,1.09772419]
[1642624333579,0.8036,3112.0,3111.9,1.09942946]
[1642624334785,0.1285,3112.2,3111.9,1.09942946]
[1642624334991,0.3,3112.3,3111.9,1.09942946]
[1642624335188,0.3,3112.3,3112.0,0.00113685]
[1642624335388,0.00113684,3112.4,3112.0,0.00113685]
[1642624336214,0.80458684,3112.4,3112.0,0.00113685]
[1642624337214,0.83683708,3112.4,3112.0,0.00113685]
[1642624337418,0.96533708,3112.4,3112.0,0.00113685]
[1642624337816,0.93308684,3112.4,3112.0,0.00113685]
[1642624338219,0.83665567,3112.4,3112.0,0.00113685]
[1642624338618,3.24742347,3112.4,3112.0,0.00113685]
[1642624339017,0.1285,3112.3,3112.0,0.00113685]
[1642624339220,0.1285,3112.3,3110.3,2.8078874]
[1642624339221,1.36359527,3111.4,3110.3,2.6793874]
[1642624339419,1.36359527,3111.4,3111.0,0.00568423]
[1642624339420,0.80378,3111.2,3111.0,0.00568423]
[1642624339623,0.3,3111.1,3111.0,0.00568423]
[1642624339817,1.10378,3111.2,3110.3,0.0096632]
[1642624340066,1.10378,3111.2,3110.9,1.55950686]
[1642624340566,1.10378,3111.2,3110.3,0.0096632]
[1642624341063,1.10378,3111.2,3109.9,0.01193689]
[1642624341265,0.3,3111.1,3109.9,0.01193689]
[1642624341467,0.3,3111.1,3110.9,1.14132918]
[1642624341665,0.3,3111.1,3110.5,1.40943292]
[1642624342064,0.96355944,3111.6,3110.6,0.00795793]
[1642624342267,8.411,3111.9,3110.6,2.6997238]
[1642624342268,0.1285,3111.8,3110.6,2.6997238]
[1642624342466,3.54212,3112.1,3110.6,2.6997238]
[1642624342467,2.41132,3112.1,3110.6,2.6997238]
[1642624342667,0.00113684,3112.2,3110.8,1.21424631]
[1642624343064,0.00113684,3112.2,3112.1,1.56173824]
[1642624343466,0.00113684,3112.2,3110.9,2.68564006]
[1642624343718,0.1285,3112.1,3110.9,0.00625266]
[1642624343913,0.80359,3111.9,3110.9,0.00625266]
[1642624344114,0.80359,3111.9,3111.3,1.22969035]
[1642624344514,0.80359,3111.9,3111.8,1.25733395]
[1642624344914,0.80359,3111.9,3111.8,1.2584708]
[1642624345119,0.80359,3111.9,3111.8,0.00113685]
[1642624345318,0.8407828,3111.9,3111.8,0.00113685]
[1642624345518,0.8037369,3111.8,3111.4,0.00341054]
[1642624345717,2.57883622,3111.8,3111.4,0.00341054]
[1642624345921,0.3,3111.7,3111.4,0.00341054]
[1642624346918,1.60748,3111.6,3111.4,0.00341054]
[1642624347219,1.90748,3111.6,3111.4,0.00341054]
[1642624348068,1.2322,3111.6,3110.3,3.6535]
[1642624348273,3.49523098,3111.5,3110.0,0.1285]
[1642624348573,2.44896646,3111.3,3110.4,0.00568423]
[1642624348868,2.44896646,3111.3,3109.7,2.8175506]
[1642624348869,1.60782,3111.3,3109.7,2.8175506]
[1642624349069,1.93259,3111.4,3111.2,1.23416084]
[1642624349268,1.93259,3111.4,3109.8,0.00909478]
[1642624349471,0.3,3111.6,3109.9,0.1285]
[1642624349672,0.3,3111.6,3111.4,1.43249329]
[1642624350370,0.80357,3111.9,3111.4,2.74183369]
[1642624350574,0.00113684,3112.2,3111.4,2.74183369]
[1642624350769,0.00227369,3111.8,3111.4,2.74183369]
[1642624350967,0.1285,3112.6,3111.4,2.74183369]
[1642624350968,0.00397896,3112.1,3111.4,2.74183369]
[1642624351237,0.00170527,3111.7,3111.4,1.3093404]
[1642624351519,0.1285,3112.6,3111.4,1.3093404]
[1642624351520,0.00113685,3111.6,3111.4,1.3093404]
[1642624351822,0.8035,3112.2,3111.4,1.3093404]
[1642624352318,0.8035,3112.2,3110.9,1.0]
[1642624352319,3.95397896,3112.1,3111.2,1.37478684]
[1642624352518,0.1285,3112.0,3111.2,1.37478684]
[1642624352720,0.13191054,3112.0,3110.8,0.1285]
[1642624352920,0.8038,3111.6,3110.8,0.1285]
[1642624353121,2.4112586,3111.8,3110.8,0.1285]
[1642624353122,0.1285,3111.7,3110.9,0.00284212]
[1642624353320,1.18594212,3111.9,3110.9,1.18655708]
[1642624353520,0.00113685,3111.6,3110.9,1.18655708]
[1642624353720,0.1285,3112.1,3111.0,0.00227369]
[1642624353721,0.00227369,3111.8,3111.0,0.00227369]
[1642624353925,0.1285,3112.1,3111.0,0.00227369]
[1642624353926,0.13247896,3112.1,3111.0,0.00227369]
[1642624354119,0.00170527,3111.7,3111.0,0.00227369]
[1642624354322,0.00341054,3112.0,3111.0,0.00227369]
[1642624354519,0.1285,3112.2,3111.0,0.00227369]
[1642624354520,0.00113685,3111.6,3111.1,1.52510944]
[1642624354723,0.00284212,3111.9,3111.2,2.6793874]
[1642624354969,0.00397896,3112.1,3111.3,0.1285]
[1642624355175,0.00227369,3111.8,3111.3,3.43925747]
[1642624355374,0.00341054,3112.0,3111.3,3.43925747]
[1642624355575,0.13819997,3112.7,3111.4,1.0]
[1642624355576,0.00170527,3111.7,3111.4,1.0]
[1642624355778,0.00284212,3111.9,3111.4,1.99253812]
[1642624355976,0.00113685,3111.6,3111.4,1.99253812]
[1642624356177,0.00227369,3111.8,3111.4,1.99253812]
[1642624356376,0.13532108,3112.6,3111.4,1.99253812]
[1642624356580,0.00170527,3111.7,3111.5,2.67838778]
[1642624356778,0.00625266,3112.5,3111.5,2.69588617]
[1642624356978,3.685e-05,3111.6,3111.5,3.49919617]
[1642624357179,0.13819997,3112.7,3111.5,3.49919617]
[1642624357180,0.00568423,3112.4,3111.5,3.49919617]
[1642624357379,0.00515266,3112.5,3111.6,0.5915]
[1642624357578,0.00401581,3112.3,3111.7,3.09284464]
[1642624357878,0.00344739,3112.2,3111.8,0.5915]
[1642624358081,0.00344739,3112.2,3111.8,0.463]
[1642624358378,0.00287896,3112.1,3111.9,2.72302685]
[1642624358577,0.00287896,3112.1,3111.9,1.34629378]
[1642624358819,0.00231054,3112.0,3111.9,1.34629378]
[1642624360226,0.00231054,3112.0,3111.9,2.82461087]
[1642624360824,0.00231054,3112.0,3111.9,3.82461087]
[1642624361525,0.00231054,3112.0,3111.9,4.62778087]
[1642624361730,0.00231054,3112.0,3111.9,7.31375485]
[1642624361926,0.00231054,3112.0,3111.9,4.62778087]
[1642624362330,0.00231054,3112.0,3111.9,2.82461087]
[1642624363570,0.00231054,3112.0,3111.9,2.77461087]
[1642624363781,0.13081054,3112.0,3111.9,1.29629378]
[1642624363975,0.00231054,3112.0,3111.9,1.29629378]
[1642624364175,0.13081054,3112.0,3111.9,1.29629378]
[1642624364376,0.00231054,3112.0,3111.9,1.29629378]
[1642624365182,0.13081054,3112.0,3111.5,0.1285]
[1642624365576,0.00174212,3111.9,3111.5,0.1285]
[1642624365974,0.00117369,3111.8,3111.5,0.1285]
[1642624366226,0.80470419,3111.8,3111.5,1.56977934]
[1642624366418,0.3,3111.7,3111.5,1.56977934]
[1642624373177,0.3,3111.7,3111.5,1.44127934]
[1642624373821,0.3,3111.7,3111.2,0.00113685]
[1642624374221,0.3,3111.7,3110.8,0.00451054]
[1642624374423,0.3,3111.7,3110.7,0.00507896]
[1642624374622,0.3,3111.7,3110.6,0.00564739]
[1642624374825,0.3,3111.7,3110.4,2.69275821]
[1642624375022,0.3,3111.7,3110.5,0.00621581]
[1642624375323,0.3,3111.7,3110.2,0.1285]
[1642624375324,0.80369,3111.5,3110.4,0.00678423]
[1642624375525,0.1285,3111.4,3110.4,0.00678423]
[1642624375722,0.1285,3111.4,3110.2,2.68597398]
[1642624375723,0.1285,3111.4,3110.3,0.00735266]
[1642624376123,0.1285,3111.5,3110.3,0.00735266]
[1642624376323,1.2767,3111.6,3111.0,1.28599074]
[1642624376525,0.1285,3111.6,3111.0,1.28599074]
[1642624376723,0.1285,3111.6,3111.1,0.00280527]
[1642624376923,0.3,3111.7,3111.1,0.00280527]
[1642624377331,0.3,3111.7,3111.1,2.69963898]
[1642624377580,0.3,3111.7,3111.1,0.00280527]
[1642624377786,0.1285,3111.8,3111.3,1.46674011]
[1642624377983,0.1285,3111.8,3111.0,1.28599074]
[1642624377984,0.00174212,3111.9,3111.8,1.56310995]
[1642624378184,0.00174212,3111.9,3111.4,0.0011]
[1642624378385,0.80537902,3111.9,3111.4,0.0011]
[1642624378588,0.12967369,3111.8,3110.8,0.00451054]
[1642624378987,0.3,3111.6,3111.4,1.50214069]
[1642624379186,0.3,3111.6,3111.4,1.18561046]
[1642624379386,0.1285,3111.7,3111.4,1.18561046]
[1642624379585,0.42967369,3111.8,3111.4,1.18561046]
[1642624379788,1.53331679,3111.8,3110.6,0.00564739]
[1642624379999,5.42205091,3111.7,3110.6,0.00564739]
[1642624380194,0.80389,3111.3,3110.6,0.00564739]
[1642624380394,0.80389,3111.3,3110.3,0.00735266]
[1642624380395,0.1285,3111.2,3110.3,0.00735266]
[1642624380593,0.4285,3111.2,3110.3,0.00735266]
[1642624380795,0.1285,3111.2,3110.3,0.00735266]
[1642624380993,0.12967369,3111.8,3110.4,1.20324837]
[1642624381219,0.12967369,3111.8,3111.6,1.15310022]
[1642624381220,0.00117369,3111.8,3111.6,1.15310022]
[1642624381423,0.00117369,3111.8,3111.2,1.10112174]
[1642624381623,0.30117369,3111.8,3110.5,0.00621581]
[1642624381825,0.30117369,3111.8,3111.3,0.00166842]
[1642624382123,0.1285,3111.7,3110.5,0.00621581]
[1642624382323,0.1285,3111.7,3111.1,1.31678234]
[1642624382725,0.1285,3111.7,3111.2,0.00223685]
[1642624383123,0.4285,3111.7,3111.2,0.00223685]
[1642624383824,0.4285,3111.7,3111.6,1.1679733]
[1642624384425,0.4285,3111.7,3111.2,0.00223685]
[1642624384426,1.1679,3111.6,3111.2,0.00223685]
[1642624384627,0.01273629,3111.3,3110.2,0.1285]
[1642624384826,0.01203706,3110.5,3109.3,1.5738036]
[1642624385103,0.3,3110.4,3110.3,0.00511581]
[1642624385295,2.69337354,3111.1,3110.4,4.05]
[1642624385296,0.03211324,3111.1,3110.4,4.05]
[1642624385496,2.73635963,3111.0,3110.8,1.26756495]
[1642624385696,0.04084527,3111.5,3110.8,1.26756495]
[1642624385894,2.73766097,3111.4,3110.9,0.00170527]
[1642624386498,0.00113685,3111.4,3110.9,0.00170527]
[1642624386997,0.00113685,3111.4,3111.3,1.29909372]
[1642624387600,0.00113685,3111.4,3110.9,0.00170527]
[1642624387798,2.73766572,3111.4,3110.9,0.00170527]
[1642624387996,2.73766572,3111.4,3110.7,0.00284211]
[1642624387997,0.00113685,3111.4,3110.7,0.00284211]
[1642624388597,2.73767707,3111.4,3111.0,1.18391467]
[1642624388818,0.00113685,3111.4,3111.0,1.18391467]
[1642624390325,2.98759746,3111.7,3111.1,1.399509]
[1642624390624,2.73759746,3111.6,3111.2,0.00113685]
[1642624391026,0.00113685,3111.6,3111.2,0.00113685]
[1642624394980,0.00113685,3111.6,3111.2,18.80113685]
[1642624395481,0.00113685,3111.6,3111.2,18.92963685]
[1642624395677,0.00113685,3111.6,3111.2,18.80113685]
[1642624395883,0.00113685,3111.6,3111.2,18.92963685]
[1642624396079,0.00113685,3111.6,3111.2,18.80113685]
[1642624396522,0.00113685,3111.6,3111.2,19.60445685]
[1642624397929,0.00113685,3111.6,3111.2,0.80445685]
[1642624398628,0.00113685,3111.6,3111.2,19.60445685]
[1642624398829,0.00113685,3111.6,3111.2,0.80445685]
[1642624399228,0.00113685,3111.6,3111.5,1.1932194]
[1642624399429,0.00113685,3111.6,3111.2,0.00113685]
[1642624400477,0.00113685,3111.6,3111.2,1.12011029]
[1642624404638,0.00113685,3111.6,3111.2,19.92011029]
[1642624405041,0.00113685,3111.6,3111.2,1.12011029]
[1642624406140,0.00113685,3111.6,3111.2,19.92011029]
[1642624406740,0.00113685,3111.6,3111.3,0.1285]
[1642624406941,0.00113685,3111.6,3111.3,0.80332]
[1642624407341,0.00113685,3111.6,3111.5,18.8]
[1642624408587,0.00113685,3111.6,3111.5,20.60319]
[1642624408786,3.685e-05,3111.6,3111.5,20.98919]
[1642624408987,0.1285,3112.8,3111.5,20.98919]
[1642624408988,0.1285,3112.8,3111.6,5.65]
[1642624409189,0.1285,3113.0,3111.7,19.186]
[1642624409387,0.00625265,3112.7,3111.7,19.186]
[1642624409788,0.00568423,3112.6,3112.5,1.30303005]
[1642624409992,0.00568423,3112.6,3112.5,2.60257413]
[1642624416004,0.00568423,3112.6,3112.5,21.40257413]
[1642624416203,0.00568423,3112.6,3112.5,24.52288413]
[1642624423285,0.1285,3113.9,3112.7,18.8]
[1642624423486,0.1285,3114.4,3112.9,0.80278]
[1642624423688,3.2723,3114.6,3113.0,19.186]
[1642624423689,0.00682108,3113.8,3113.0,19.186]
[1642624424085,0.00625266,3113.7,3113.2,18.8]
[1642624424287,0.00625266,3113.7,3113.2,19.3143]
[1642624424484,0.00568424,3113.6,3113.3,3.80748768]
[1642624424887,0.00511581,3113.5,3113.3,3.80748768]
[1642624425285,0.00374516,3113.4,3113.3,3.80748768]
[1642624426934,0.00374516,3113.4,3113.3,3.93578768]
[1642624428229,0.00374516,3113.4,3113.3,2.93578768]
[1642624429128,0.00374516,3113.4,3113.3,3.93578768]
[1642624430777,0.00374516,3113.4,3113.3,4.19312378]
[1642624430974,0.00374516,3113.4,3113.3,22.99312378]
[1642624431178,0.00374516,3113.4,3113.3,4.19312378]
[1642624431582,0.00374516,3113.4,3113.3,23.79586378]
[1642624431979,0.00374516,3113.4,3113.3,4.99586378]
[1642624432181,0.00374516,3113.4,3113.3,23.79586378]
[1642624432380,0.00374516,3113.4,3113.3,24.18186378]
[1642624434129,0.00374516,3113.4,3113.3,0.2573361]
[1642624438578,1.2652,3114.3,3114.1,1.19685075]
[1642624438579,1.21894516,3114.3,3114.1,1.19685075]
[1642624438779,2.73456542,3114.2,3113.3,0.2573361]
[1642624438980,5.87484728,3114.2,3113.3,0.2573361]
[1642624439178,0.1283,3114.1,3113.3,0.2573361]
[1642624439482,0.00341054,3114.0,3113.3,0.2573361]
[1642624439979,0.00284212,3113.9,3113.3,0.2573361]
[1642624440182,0.00284212,3113.9,3113.7,1.42870338]
[1642624440384,0.00227369,3113.8,3113.7,1.42870338]
[1642624440984,0.00227369,3113.8,3113.4,1.2562804]
[1642624441428,0.00170527,3113.7,3113.4,1.2562804]
[1642624441830,0.00170527,3113.7,3113.3,0.2573361]
[1642624441831,0.12943685,3113.6,3113.3,0.2573361]
[1642624442036,2.73505812,3113.5,3113.3,0.2573361]
[1642624442230,5.7783,3113.4,3113.3,3.61e-05]
[1642624442430,3.35,3113.3,3112.0,2.66154694]
[1642624442632,0.1285,3113.2,3111.9,7.5879]
[1642624442831,0.9317611,3113.2,3112.1,0.00738951]
[1642624443031,0.1285,3113.3,3112.1,0.00738951]
[1642624443230,3.0589,3113.4,3112.1,0.13588951]
[1642624443431,0.1285,3113.3,3113.2,1.18154838]
[1642624443832,0.1285,3113.3,3113.2,1.18268523]
[1642624444232,2.86366308,3113.3,3113.2,1.18268523]
[1642624444833,2.86368023,3113.3,3113.2,1.18268523]
[1642624445381,0.1285,3113.3,3113.2,1.18268523]
[1642624446685,2.86358784,3113.3,3113.2,1.18268523]
[1642624446885,3.03508784,3113.3,3113.2,0.00113685]
[1642624447289,3.03508784,3113.3,3112.8,0.00341054]
[1642624447486,0.3,3113.3,3112.8,0.00341054]
[1642624447885,2.73512778,3113.2,3112.8,0.00341054]
[1642624448086,0.80325,3113.2,3112.8,0.00341054]
[1642624448286,0.80325,3113.2,3112.9,1.36491798]
[1642624448726,0.80325,3113.2,3113.0,0.00227369]
[1642624448932,0.00113685,3113.6,3113.0,0.00227369]
[1642624450734,0.80437685,3113.6,3113.0,0.00227369]
[1642624450932,0.80437685,3113.6,3112.4,3.7086]
[1642624450933,2.73478981,3113.5,3112.5,0.00511581]
[1642624451137,0.80329,3113.3,3112.5,0.00511581]
[1642624451338,2.73478981,3113.2,3112.5,0.00511581]
[1642624451534,0.1283,3113.1,3112.5,0.00511581]
[1642624451732,0.1283,3113.1,3112.4,0.00568424]
[1642624451733,2.73478981,3113.0,3112.4,0.00568424]
[1642624452133,3.03478981,3113.0,3112.4,0.00568424]
[1642624452332,2.73478981,3112.9,3112.4,0.00568424]
[1642624452575,4.75075312,3112.9,3112.4,0.00568424]
[1642624452774,2.86328981,3112.8,3112.4,0.00568424]
[1642624452979,2.86328981,3112.8,3111.7,0.0096632]
[1642624452980,2.73478981,3112.7,3111.7,0.0096632]
[1642624453182,0.84244375,3112.5,3111.7,0.0096632]
[1642624453477,1.36625887,3112.3,3111.7,0.0096632]
[1642624453677,0.80354,3112.3,3111.7,0.0096632]
[1642624454880,0.80354,3112.3,3111.9,1.11881219]
[1642624455282,0.80354,3112.3,3112.0,0.00795793]
[1642624455681,0.80354,3112.3,3112.1,1.5619891]
[1642624455882,0.93188,3112.6,3112.1,1.5619891]
[1642624456224,0.1285,3112.7,3112.2,0.00682108]
[1642624456424,1.1915,3112.8,3112.2,0.00682108]
[1642624456726,0.7285,3112.8,3112.2,0.00682108]
[1642624457126,1.53182,3112.8,3112.6,1.21583396]
[1642624457327,1.53182,3112.8,3112.6,2.4412016]
[1642624457328,0.6,3112.8,3112.6,2.4412016]
[1642624457528,0.6,3112.8,3112.7,0.00397897]
[1642624457730,3.03533034,3112.8,3112.7,0.00397897]
[1642624457928,0.46333894,3113.0,3112.7,0.00397897]
[1642624458127,0.3,3112.8,3112.7,0.00397897]
[1642624458328,3.16380369,3112.8,3112.7,0.00397897]
[1642624458528,0.1285,3113.0,3112.7,0.00397897]
[1642624459130,6.96693685,3113.6,3112.7,0.00397897]
[1642624459333,2.73497822,3113.5,3112.7,0.00397897]
[1642624459992,2.73497822,3113.5,3113.4,1.10551085]
[1642624460587,0.00113685,3113.6,3113.4,1.10551085]
[1642624460990,2.73611507,3113.6,3113.4,1.10551085]
[1642624461188,2.73497822,3113.5,3112.7,0.00397897]
[1642624461386,2.73497822,3113.4,3112.7,0.00397897]
[1642624461588,2.73497822,3113.3,3112.4,0.00568424]
[1642624461887,2.73497822,3113.3,3112.2,0.463]
[1642624461888,2.73497822,3113.2,3112.3,0.00625266]
[1642624462088,0.80312,3113.1,3112.3,0.46925266]
[1642624462289,0.80312,3113.1,3113.0,1.30534879]
[1642624462690,0.80312,3113.1,3113.0,0.00227369]
[1642624463192,0.80312,3113.1,3112.6,0.00454739]
[1642624463823,0.80312,3113.1,3112.7,1.51982594]
[1642624464221,0.80312,3113.1,3112.8,0.00341054]
[1642624464522,1.13358313,3113.1,3112.6,0.00454739]
[1642624464722,2.73515608,3113.0,3112.6,0.00454739]
[1642624465127,0.80312,3113.1,3112.6,0.00454739]
[1642624465625,0.93135,3113.5,3112.6,0.00454739]
[1642624465924,3.98010534,3113.6,3112.6,0.00454739]
[1642624465925,4.06933685,3113.6,3112.7,1.45108993]
[1642624466126,0.00113685,3113.6,3112.8,3.113839]
[1642624466325,0.00113685,3113.6,3112.9,0.1283]
[1642624466525,0.00113685,3113.6,3112.9,1.13114212]
[1642624466724,0.00113685,3113.6,3113.0,0.46527369]
[1642624467130,0.00113685,3113.6,3113.1,1.31810651]
[1642624467342,0.00113685,3113.6,3113.2,1.90905468]
[1642624467576,0.00113685,3113.6,3113.2,3.73319153]
[1642624468377,0.00113685,3113.6,3113.3,18.8]
[1642624469877,0.00113685,3113.6,3113.2,3.73319153]
[1642624470077,0.00113685,3113.6,3113.3,0.1283]
[1642624471725,2.73434708,3114.3,3113.3,0.1283]
[1642624471927,2.73434708,3114.3,3113.7,1.32634142]
[1642624472126,0.00454739,3114.2,3113.7,1.32634142]
[1642624472528,0.00397896,3114.1,3113.7,1.32634142]
[1642624472827,1.07912994,3114.5,3113.8,1.26287872]
[1642624472828,0.00341054,3114.0,3113.8,1.26287872]
[1642624473238,2.73420168,3114.4,3113.8,1.26287872]
[1642624473239,0.00284212,3113.9,3113.8,1.26287872]
[1642624473832,0.00284212,3113.9,3113.8,4.76287872]
[1642624474033,0.00284212,3113.9,3113.8,8.37141709]
[1642624474234,0.00284212,3113.9,3113.8,8.83441709]
[1642624474435,0.00284212,3113.9,3113.8,27.63441709]
[1642624475883,0.00284212,3113.9,3113.8,27.76271709]
[1642624476681,2.73395768,3115.3,3114.0,18.8]
[1642624476883,2.73395768,3115.2,3114.1,19.3913]
[1642624477181,2.73395768,3115.2,3114.2,1.463]
[1642624477182,2.73395768,3115.1,3114.2,1.463]
[1642624477482,0.00625265,3115.0,3114.2,0.5913]
[1642624477682,2.73395768,3114.9,3114.6,1.28300019]
[1642624477885,2.73395768,3114.9,3114.2,0.463]
[1642624477886,2.73964191,3114.9,3114.2,0.463]
[1642624478083,2.73907349,3114.8,3114.2,1.463]
[1642624478280,2.73907349,3114.8,3114.2,0.463]
[1642624478281,2.73395768,3114.7,3114.2,0.463]
[1642624478484,0.00454738,3114.7,3114.2,0.463]
[1642624478733,0.00397896,3114.6,3114.2,0.463]
[1642624478927,0.00397896,3114.6,3114.2,1.67647825]
[1642624479129,0.00341054,3114.5,3114.2,1.67647825]
[1642624479328,0.00341054,3114.5,3114.2,0.463]
[1642624479529,0.00284211,3114.4,3113.6,0.1283]
[1642624479729,0.00284211,3114.4,3113.5,0.5913]
[1642624480034,2.7339126,3114.8,3113.6,0.00170527]
[1642624480035,0.00227369,3114.3,3113.6,0.00170527]
[1642624480433,2.7339126,3114.4,3113.6,0.00170527]
[1642624480434,0.00170527,3114.2,3113.6,0.00170527]
[1642624480631,0.00170527,3114.2,3113.4,2.51430994]
[1642624480832,0.00113684,3114.1,3113.5,0.0022737]
[1642624481034,0.80285,3114.0,3113.5,0.0022737]
[1642624481631,0.80285,3114.0,3113.0,0.00511581]
[1642624481832,0.80285,3114.0,3112.9,18.80568424]
[1642624482033,0.80285,3114.0,3113.0,0.00511581]
[1642624482876,0.80285,3114.0,3113.4,1.32115574]
[1642624483073,0.80285,3114.0,3113.5,1.13622513]
[1642624483277,0.80285,3114.0,3113.5,1.13849883]
[1642624483475,0.80285,3114.0,3113.6,0.00170527]
[1642624484074,0.00170527,3114.2,3113.6,0.00170527]
[1642624484475,0.00113684,3114.1,3114.0,1.26366285]
[1642624484675,0.00113684,3114.1,3114.0,2.6648769]
[1642624486728,0.00113684,3114.1,3114.0,1.40121405]
[1642624487124,0.00113684,3114.1,3113.6,0.00170527]
[1642624487326,0.00113684,3114.1,3113.6,1.00170527]
[1642624487525,0.00113684,3114.1,3113.5,0.0022737]
[1642624487725,0.00113684,3114.1,3113.7,0.00113685]
[1642624487925,0.00113684,3114.1,3113.8,1.53950136]
[1642624488526,0.00113684,3114.1,3114.0,1.5362171]
[1642624489527,0.00113684,3114.1,3113.8,1.53950136]
[1642624489727,0.00113684,3114.1,3113.6,0.1283]
[1642624489983,0.00113684,3114.1,3113.5,0.0022737]
[1642624490183,0.00113684,3114.1,3113.7,0.00113685]
[1642624490184,0.1283,3114.0,3113.7,0.00113685]
[1642624490384,0.00113684,3114.1,3113.3,0.00341054]
[1642624490583,0.00113684,3114.1,3113.1,0.00454739]
[1642624490785,0.00113684,3114.1,3113.2,1.52995345]
[1642624490983,2.73558481,3114.1,3113.2,1.52995345]
[1642624491186,0.00113684,3114.1,3113.3,0.00341054]
[1642624491386,0.80287,3114.0,3113.3,0.00341054]
[1642624492884,1.23117,3114.0,3113.3,0.00341054]
[1642624493083,1.60597,3113.9,3113.1,0.00454739]
[1642624493287,1.64551888,3113.9,3112.7,0.00682109]
[1642624493486,1.9060751,3113.8,3112.7,0.00682109]
[1642624493731,0.80309,3113.6,3112.7,0.00682109]
[1642624493925,0.1283,3113.5,3112.7,0.00682109]
[1642624494129,0.3,3113.4,3112.7,0.00682109]
[1642624494527,0.3,3113.5,3112.7,0.00682109]
[1642624494726,0.3,3113.5,3113.0,1.41214529]
[1642624494927,0.6,3113.5,3113.0,2.72957863]
[1642624495128,0.6,3113.5,3113.1,0.00454739]
[1642624495327,0.80309,3113.6,3113.1,0.00454739]
[1642624496130,0.67586317,3113.6,3113.1,0.00454739]